bitfinex/quotes_ETHUSD_20251017
["timestamp","ask_amount","ask_price","bid_price","bid_amount"]
[1760667750365,0.1,3922.5,3922.0,9.7610403]
[1760667750785,0.1,3922.5,3922.0,9.86325151]
[1760667751094,0.1,3922.1,3922.0,2.54971953]
[1760667751579,0.001,3922.1,3922.0,3.18331953]
[1760667751891,0.1,3922.1,3922.0,3.18331953]
[1760667753658,0.1,3922.1,3921.4,2.55010899]
[1760667753659,0.1,3922.1,3921.2,1.728]
[1760667753884,0.099,3922.0,3921.9,2.54978454]
[1760667754075,0.099,3922.0,3921.9,3.18338454]
[1760667754276,0.099,3922.0,3921.9,2.54978454]
[1760667754596,0.001,3922.1,3922.0,2.54971953]
[1760667755117,0.001,3922.1,3920.3,0.4305]
[1760667755317,0.001,3922.1,3920.7,2.579]
[1760667755622,0.099,3922.0,3921.7,3.18350978]
[1760667755783,0.2248,3921.8,3921.7,3.18350978]
[1760667756118,0.3251,3921.8,3921.6,0.6336]
[1760667756324,0.2248,3921.8,3921.6,3.1835202]
[1760667756614,0.1003,3921.7,3921.6,3.1835202]
[1760667757217,0.1003,3921.7,3920.9,4.27837717]
[1760667757218,0.1003,3921.7,3920.3,0.002]
[1760667757517,0.1846,3920.7,3920.3,0.002]
[1760667757880,0.2857,3920.7,3920.3,0.002]
[1760667758510,0.2857,3920.7,3920.6,0.6356]
[1760667758711,0.2857,3920.7,3920.6,2.55263]
[1760667759111,0.2857,3920.7,3920.6,3.18623]
[1760667759419,0.2857,3920.7,3920.6,0.6356]
[1760667759714,0.2857,3920.7,3920.6,3.18623]
[1760667759888,0.1846,3920.7,3920.6,3.18623]
[1760667760078,0.1828,3921.0,3920.9,3.18403484]
[1760667760504,0.68448165,3921.0,3920.9,0.6336]
[1760667760726,0.39978165,3921.0,3920.9,3.18403484]
[1760667761394,0.50248165,3921.0,3920.9,3.18403484]
[1760667761595,0.1027,3921.0,3920.9,3.18403484]
[1760667761993,0.182,3921.2,3921.1,3.18390476]
[1760667762193,2.8619,3921.6,3921.4,3.18370965]
[1760667762397,2.579,3921.6,3921.5,3.18364462]
[1760667762814,2.579,3921.6,3921.5,3.31084462]
[1760667763547,0.1272,3922.0,3921.9,3.18338454]
[1760667763755,2.9885,3922.3,3922.0,2.54971953]
[1760667764316,2.7062,3922.3,3921.9,0.6336]
[1760667764539,0.1,3922.1,3922.0,2.54971953]
[1760667764849,0.001,3922.1,3922.0,2.54971953]
[1760667765829,0.1,3922.1,3922.0,2.54971953]
[1760667766031,0.001,3922.1,3922.0,3.18331953]
[1760667766229,0.001,3922.1,3922.0,3.20881672]
[1760667767133,0.001,3922.1,3922.0,4.32760549]
[1760667768153,0.001,3922.1,3922.0,5.62710549]
[1760667768340,0.001,3922.1,3922.0,5.03851953]
[1760667770115,0.001,3922.1,3922.0,0.7608]
[1760667770344,0.1,3922.1,3922.0,2.54971953]
[1760667770543,0.1,3922.1,3922.0,3.18331953]
[1760667771471,0.1,3922.1,3921.8,0.1272]
[1760667771677,2.55029936,3921.2,3920.3,0.002]
[1760667771853,0.183,3920.7,3920.3,0.002]
[1760667772259,0.68262377,3920.7,3920.3,0.002]
[1760667772660,0.2828,3920.7,3920.4,2.55073575]
[1760667772848,0.2828,3920.7,3920.5,2.579]
[1760667773555,0.2828,3920.7,3920.6,0.6356]
[1760667775281,0.1821,3921.0,3920.6,3.18623]
[1760667775458,0.1821,3921.0,3920.7,2.55052593]
[1760667775658,0.2828,3921.0,3920.9,0.6336]
[1760667775864,0.1821,3921.0,3920.9,0.6336]
[1760667776456,0.2828,3921.0,3920.9,3.2126]
[1760667776656,0.2828,3921.0,3920.9,0.6336]
[1760667776858,0.2828,3921.0,3920.9,3.2126]
[1760667777056,0.2828,3921.0,3920.9,0.6336]
[1760667777259,0.1821,3921.0,3920.9,0.6336]
[1760667777461,0.1821,3921.0,3920.9,3.18403484]
[1760667777659,0.50054719,3921.3,3921.0,0.6336]
[1760667779199,0.50054719,3921.3,3921.2,0.6336]
[1760667779354,0.39984719,3921.3,3921.0,0.6336]
[1760667779554,0.39984719,3921.3,3921.2,3.18383972]
[1760667779760,0.39984719,3921.3,3921.2,1.57227713]
[1760667780005,0.3269,3921.9,3921.3,0.6336]
[1760667780165,0.39976951,3921.8,3921.5,2.55004009]
[1760667780503,0.3269,3921.9,3921.6,3.2126]
[1760667780504,0.1015,3921.7,3921.6,3.2126]
[1760667780891,0.1015,3921.7,3921.6,0.6336]
[1760667781059,0.2254,3921.9,3921.7,0.6336]
[1760667781262,0.3269,3921.9,3921.7,3.2126]
[1760667781484,0.3269,3921.9,3921.6,0.6336]
[1760667781794,0.2287,3921.8,3921.7,0.6336]
[1760667781995,0.2287,3921.8,3921.7,3.2126]
[1760667782408,0.44401,3921.8,3921.2,0.1272]
[1760667782613,0.21831,3921.8,3921.4,0.6336]
[1760667782764,0.1015,3921.7,3921.1,2.579]
[1760667783075,0.1015,3921.6,3921.1,2.579]
[1760667783274,2.54991457,3921.7,3921.1,2.579]
[1760667783463,0.1015,3921.5,3921.1,2.579]
[1760667783813,0.1272,3921.1,3920.9,0.6336]
[1760667784096,0.1272,3921.1,3921.0,3.2126]
[1760667784867,0.1272,3921.1,3921.0,0.6336]
[1760667785161,0.2287,3921.1,3921.0,3.2126]
[1760667785376,0.2287,3921.1,3920.6,0.002]
[1760667785575,0.1805,3920.7,3920.6,0.002]
[1760667785914,0.45360068,3920.7,3920.6,0.002]
[1760667786088,0.55590068,3920.7,3920.6,0.002]
[1760667787170,2.83336495,3920.7,3920.6,0.002]
[1760667787379,0.2828,3920.7,3920.6,0.002]
[1760667787576,0.1272,3920.7,3920.6,0.6356]
[1760667787804,0.2302,3920.7,3920.6,0.6356]
[1760667787972,0.52616225,3920.7,3920.6,0.002]
[1760667788408,0.2302,3920.7,3920.6,0.002]
[1760667788969,0.63006973,3920.7,3920.6,0.002]
[1760667790424,13.72011868,3920.7,3920.6,0.002]
[1760667790803,13.32024895,3920.7,3920.6,0.002]
[1760667791123,12.77194495,3920.7,3920.6,0.002]
[1760667791326,6.32960702,3920.7,3920.6,0.002]
[1760667791624,18.04774402,3920.7,3920.6,0.002]
[1760667791793,16.19826902,3920.7,3920.6,0.002]
[1760667792481,13.56026902,3920.7,3920.6,0.002]
[1760667793627,25.10959002,3920.7,3920.6,0.002]
[1760667794049,24.07804002,3920.7,3920.6,0.002]
[1760667794535,30.63913402,3920.7,3920.6,0.002]
[1760667795138,2.55095464,3920.2,3919.4,0.6336]
[1760667795336,5.13095464,3920.2,3919.6,0.6336]
[1760667796206,2.5509807,3920.1,3919.6,0.6336]
[1760667796897,2.6547807,3920.1,3919.6,0.6336]
[1760667797100,3.47332693,3920.1,3919.6,0.6336]
[1760667798120,0.81854623,3920.1,3919.6,0.6336]
[1760667798435,2.97991107,3920.2,3919.7,0.4661]
[1760667798436,2.58,3920.2,3919.7,0.4661]
[1760667798736,5.13090427,3920.2,3919.6,0.6336]
[1760667799234,5.13090427,3920.2,3919.8,0.6336]
[1760667799235,2.58,3920.2,3919.8,0.6336]
[1760667799436,2.58,3920.2,3920.0,0.6336]
[1760667799639,2.58,3920.2,3920.1,0.4661]
[1760667799801,2.83331062,3920.8,3920.2,0.6336]
[1760667799802,0.2828,3920.8,3920.2,0.6336]
[1760667799996,1.728,3920.7,3920.2,4.03379999]
[1760667800202,1.728,3920.7,3920.3,0.4661]
[1760667801185,1.728,3920.7,3920.4,0.4661]
[1760667801384,1.728,3920.7,3920.2,0.6336]
[1760667801690,0.39985646,3921.5,3920.5,0.6336]
[1760667801983,2.58,3921.4,3920.7,0.6336]
[1760667802281,1.728,3921.3,3920.7,0.6336]
[1760667802647,1.728,3921.3,3920.2,0.6336]
[1760667802971,1.728,3921.1,3920.2,0.6336]
[1760667803173,2.98815468,3921.0,3920.2,0.6336]
[1760667803370,0.43772397,3921.0,3920.4,0.6336]
[1760667803870,2.58,3921.0,3920.5,0.4506]
[1760667804088,2.58,3921.0,3920.6,0.4506]
[1760667804290,2.58,3921.0,3920.2,0.6336]
[1760667804466,2.7334541,3920.9,3920.2,0.6336]
[1760667804787,0.183,3920.9,3920.2,3.18448216]
[1760667804991,2.58,3921.0,3920.4,0.6336]
[1760667805455,5.13037026,3921.0,3920.4,0.6336]
[1760667805654,5.13137026,3921.0,3920.4,0.6336]
[1760667806060,2.581,3921.0,3920.4,0.6336]
[1760667807935,2.581,3921.0,3920.6,0.6336]
[1760667808217,0.1272,3920.7,3920.6,1.0842]
[1760667808515,0.1272,3920.7,3920.6,0.6336]
[1760667809195,0.1272,3920.7,3919.9,5.95127994]
[1760667809196,0.51612,3920.7,3919.9,3.40019999]
[1760667809512,0.1272,3920.3,3920.2,3.18449026]
[1760667809695,0.1272,3920.3,3920.2,3.63509026]
[1760667810212,0.1272,3920.7,3920.5,0.6336]
[1760667810578,0.1272,3920.7,3920.5,1.0842]
[1760667810907,0.1272,3920.7,3920.1,1.0842]
[1760667811109,0.1272,3920.7,3920.1,0.6336]
[1760667811110,2.55058989,3920.7,3920.1,0.6336]
[1760667811405,0.1272,3920.2,3920.0,3.18461911]
[1760667812199,0.1272,3920.2,3920.0,0.6336]
[1760667812398,0.1272,3920.2,3920.0,3.18460512]
[1760667812916,0.12382042,3920.2,3920.1,4.03379999]
[1760667815183,0.12382042,3920.2,3920.1,4.48439999]
[1760667816116,0.12382042,3920.2,3920.1,4.03379999]
[1760667816476,0.52369127,3920.2,3920.1,4.03379999]
[1760667817516,0.9355604,3920.2,3919.9,3.40019999]
[1760667817816,0.9355604,3920.2,3919.2,0.002]
[1760667817817,0.1272,3919.8,3919.2,3.40219999]
[1760667818118,0.1272,3919.6,3919.5,0.6336]
[1760667818323,0.1272,3919.6,3919.4,2.55135731]
[1760667818622,0.1272,3919.6,3919.5,0.6336]
[1760667821170,0.1272,3919.6,3919.4,0.6336]
[1760667821444,0.1272,3919.6,3919.3,0.002]
[1760667821445,0.1034,3919.5,3919.3,0.002]
[1760667821808,2.55141093,3919.4,3919.3,0.002]
[1760667822205,9.54690993,3919.4,3919.3,0.002]
[1760667822520,10.04708993,3919.4,3919.3,0.002]
[1760667822721,11.595999,3919.4,3919.3,0.002]
[1760667823250,24.700427,3919.4,3919.3,0.002]
[1760667823434,23.589834,3919.4,3919.3,0.002]
[1760667824451,26.498379,3919.4,3919.3,0.002]
[1760667824918,25.37853989,3919.4,3919.3,0.002]
[1760667825119,13.84297189,3919.4,3919.3,0.002]
[1760667825310,22.77165189,3919.4,3919.3,0.002]
[1760667825510,20.48965189,3919.4,3919.3,0.002]
[1760667826251,22.28083189,3919.4,3919.3,0.002]
[1760667826440,23.99383289,3919.4,3919.3,0.002]
[1760667827224,35.38572589,3919.4,3919.3,0.002]
[1760667827414,32.04988189,3919.4,3919.3,0.002]
[1760667827945,28.90048089,3919.4,3919.3,0.002]
[1760667828137,25.85858989,3919.4,3919.3,0.002]
[1760667828326,31.81375689,3919.4,3919.3,0.002]
[1760667829319,38.91175289,3919.4,3919.3,0.002]
[1760667829913,26.73011189,3919.4,3919.3,0.002]
[1760667830466,31.73869789,3919.4,3919.3,0.002]
[1760667830626,23.53104989,3919.4,3919.3,0.002]
[1760667831350,38.91175289,3919.4,3919.3,0.002]
[1760667832158,38.18399589,3919.4,3919.3,0.002]
[1760667832340,34.90517189,3919.4,3919.3,0.002]
[1760667833362,38.91175289,3919.4,3919.3,0.002]
[1760667834367,36.23432689,3919.4,3919.3,0.002]
[1760667834858,33.82681889,3919.4,3919.3,0.002]
[1760667835565,38.91175289,3919.4,3919.3,0.002]
[1760667836154,27.16469189,3919.4,3919.3,0.002]
[1760667836338,28.10903189,3919.4,3919.3,0.002]
[1760667837451,35.00969489,3919.4,3919.3,0.002]
[1760667838390,38.91175289,3919.4,3919.3,0.002]
[1760667839187,52.19603495,3919.4,3919.3,0.002]
[1760667839385,51.79600206,3919.4,3919.3,0.002]
[1760667842295,52.1960809,3919.4,3919.3,0.002]
[1760667844058,52.0926809,3919.4,3919.3,0.002]
[1760667844488,22.0926809,3919.4,3919.3,0.002]
[1760667844797,52.1960809,3919.4,3919.3,0.002]
[1760667845091,15.17833784,3919.4,3919.3,0.002]
[1760667845517,37.28298084,3919.4,3919.3,0.002]
[1760667845668,35.42387184,3919.4,3919.3,0.002]
[1760667846708,38.80839884,3919.4,3919.3,0.002]
[1760667848000,27.195849,3919.4,3919.3,0.002]
[1760667848306,27.59588537,3919.4,3919.3,0.002]
[1760667848482,27.32354437,3919.4,3919.3,0.002]
[1760667848686,31.78662837,3919.4,3919.3,0.002]
[1760667849593,36.92636437,3919.4,3919.3,0.002]
[1760667850102,27.21122737,3919.4,3919.3,0.002]
[1760667850303,15.00063937,3919.4,3919.3,0.002]
[1760667850600,18.06789337,3919.4,3919.3,0.4331]
[1760667850814,17.83066737,3919.4,3919.3,0.4331]
[1760667851017,17.83166737,3919.4,3919.3,0.4331]
[1760667851578,16.85072037,3919.4,3919.3,0.4331]
[1760667852206,16.85072037,3919.4,3919.3,0.002]
[1760667852573,38.91395637,3919.4,3919.3,0.002]
[1760667852881,34.82990537,3919.4,3919.3,0.002]
[1760667853524,49.08711832,3919.4,3919.3,0.002]
[1760667853819,49.08711832,3919.4,3919.2,1e-08]
[1760667853820,34.32947602,3919.3,3919.2,1e-08]
[1760667854008,36.82963228,3919.3,3919.2,1e-08]
[1760667854316,36.93423228,3919.3,3919.2,1e-08]
[1760667857220,34.27954113,3919.2,3919.1,0.002]
[1760667857420,44.97894015,3919.2,3919.1,0.002]
[1760667857634,45.08354015,3919.2,3919.1,0.002]
[1760667861343,47.66454015,3919.2,3919.1,0.002]
[1760667863039,47.96003526,3919.2,3919.1,0.002]
[1760667863434,48.06463526,3919.2,3919.1,0.002]
[1760667865113,55.06463526,3919.2,3919.1,0.002]
[1760667866034,25.06463526,3919.2,3919.1,0.002]
[1760667866240,55.06463526,3919.2,3919.1,0.002]
[1760667866621,32.55167134,3919.0,3918.9,0.002]
[1760667866821,34.59038479,3919.0,3918.9,0.002]
[1760667867037,4.69498479,3919.0,3918.9,0.002]
[1760667867345,34.32980157,3918.8,3918.7,1e-08]
[1760667867542,2.55193181,3918.6,3918.4,0.002]
[1760667867730,35.82884088,3918.6,3918.4,0.002]
[1760667868145,36.22898532,3918.6,3918.4,0.002]
[1760667868463,35.82884088,3918.6,3918.4,0.002]
[1760667868621,30.0,3918.2,3918.0,0.002]
[1760667868823,48.76345073,3918.1,3918.0,0.002]
[1760667869932,48.89251501,3918.1,3918.0,0.002]
[1760667871019,19.29270444,3918.1,3918.0,0.002]
[1760667871224,47.58742144,3918.1,3918.0,0.002]
[1760667871431,46.54685444,3918.1,3918.0,0.002]
[1760667872172,49.29270444,3918.1,3918.0,0.002]
[1760667873138,47.52566644,3918.1,3918.0,0.002]
[1760667873338,39.22913044,3918.1,3918.0,0.002]
[1760667874123,49.29270444,3918.1,3918.0,0.4678]
[1760667874323,32.70595294,3918.1,3918.0,0.4678]
[1760667874525,7.7227119,3918.1,3918.0,0.4678]
[1760667874820,15.4730304,3918.1,3918.0,0.4678]
[1760667875035,11.9629654,3918.1,3918.0,0.4678]
[1760667875265,14.3439474,3918.1,3918.0,0.4678]
[1760667877665,11.9629654,3918.1,3918.0,0.4678]
[1760667878753,15.4662264,3918.1,3918.0,0.4678]
[1760667879454,11.56277597,3918.1,3918.0,0.4678]
[1760667879688,24.77203656,3918.1,3918.0,0.002]
[1760667880185,25.23983656,3918.1,3918.0,0.002]
[1760667880386,29.94135506,3918.1,3918.0,0.002]
[1760667880593,30.76642656,3918.1,3918.0,0.002]
[1760667881053,27.77638456,3918.1,3918.0,0.002]
[1760667881679,43.48884656,3918.1,3918.0,0.4678]
[1760667882466,43.8889797,3918.1,3918.0,0.4678]
[1760667882985,41.96290911,3918.1,3918.0,0.4678]
[1760667884662,41.90122011,3918.1,3918.0,0.002]
[1760667884862,41.90122011,3918.1,3918.0,0.4678]
[1760667885595,11.96290911,3918.1,3918.0,0.4678]
[1760667885888,41.96290911,3918.1,3918.0,0.4678]
[1760667886655,11.96290911,3918.1,3918.0,0.4678]
[1760667886872,41.96290911,3918.1,3918.0,0.4678]
[1760667887595,44.46306537,3918.1,3918.0,0.002]
[1760667890189,49.32078387,3918.1,3918.0,0.002]
[1760667890710,48.92065073,3918.1,3918.0,0.002]
[1760667890888,49.02304666,3918.1,3918.0,0.002]
[1760667891774,49.02304666,3918.1,3918.0,0.000823]
[1760667892806,34.28038775,3917.9,3917.8,0.002]
[1760667893007,35.57674977,3917.9,3917.8,0.002]
[1760667893215,35.68294977,3917.9,3917.8,0.002]
[1760667893511,35.7853457,3917.9,3917.8,0.002]
[1760667893686,36.1855534,3917.9,3917.8,0.002]
[1760667893888,36.0793534,3917.9,3917.8,0.002]
[1760667894575,36.1855534,3917.9,3917.8,0.002]
[1760667896711,36.4586534,3917.9,3917.8,0.002]
[1760667897913,36.1293534,3917.9,3917.8,0.002]
[1760667898434,36.4609534,3917.9,3917.8,0.002]
[1760667898584,36.0607457,3917.9,3917.8,0.002]
[1760667898988,36.19439313,3917.9,3917.8,0.002]
[1760667900884,35.86279313,3917.9,3917.8,0.002]
[1760667901616,36.26300753,3917.9,3917.8,0.002]
[1760667901923,36.26300753,3917.9,3917.4,0.002]
[1760667901924,2.55264837,3917.5,3917.4,0.002]
[1760667902130,4.28077869,3917.3,3917.2,0.002]
[1760667902415,31.778,3917.1,3916.8,0.002]
[1760667902601,4.28097421,3917.0,3916.8,0.002]
[1760667902912,35.92888328,3917.0,3916.8,0.002]
[1760667903114,35.82988328,3917.0,3916.8,0.002]
[1760667903717,35.92888328,3917.0,3916.8,0.002]
[1760667903914,35.82988328,3917.0,3916.8,0.002]
[1760667904117,4.28103939,3916.9,3916.8,1e-08]
[1760667904319,32.60323494,3916.6,3916.5,0.002]
[1760667904520,41.61275344,3916.6,3916.5,0.002]
[1760667904826,41.71475344,3916.6,3916.5,0.002]
[1760667904981,42.35180988,3916.6,3916.5,0.002]
[1760667905181,43.6481719,3916.6,3916.5,0.002]
[1760667905382,32.55382179,3915.7,3915.4,0.4745]
[1760667905651,36.86182179,3915.7,3915.4,0.4745]
[1760667905826,29.28698524,3915.5,3915.4,0.4745]
[1760667906023,24.89711546,3915.4,3915.3,0.2194]
[1760667906230,14.48618,3915.4,3915.3,0.2194]
[1760667906714,17.04019746,3915.4,3915.3,0.6939]
[1760667907151,21.08988046,3915.4,3915.3,0.6939]
[1760667907650,20.88751546,3915.4,3915.3,0.6939]
[1760667908027,20.88751546,3915.4,3914.6,0.4745]
[1760667908028,1.728,3914.7,3914.6,0.4745]
[1760667908226,1.728,3914.6,3914.5,0.003]
[1760667908427,2.581,3914.6,3914.5,0.003]
[1760667908626,2.581,3914.6,3914.5,1.1111]
[1760667909029,2.581,3914.6,3914.5,0.4775]
[1760667909030,4.987676,3914.6,3914.5,0.4775]
[1760667909339,2.581,3914.6,3914.5,0.4775]
[1760667911255,2.98148365,3914.6,3914.5,0.4775]
[1760667913610,2.98148365,3914.6,3914.5,0.003]
[1760667913759,4.70948365,3914.6,3914.5,0.4775]
[1760667914770,4.70948365,3914.6,3914.5,1.1111]
[1760667915383,2.98148365,3914.6,3914.5,1.1111]
[1760667916978,2.98148365,3914.6,3914.5,3.66570467]
[1760667918357,2.98148365,3914.6,3914.5,4.28835231]
[1760667919193,0.40048365,3914.6,3914.5,4.28835231]
[1760667919501,2.98148365,3914.6,3914.5,4.28835231]
[1760667919863,0.40048365,3914.6,3914.5,4.28835231]
[1760667920271,2.7082,3914.6,3914.5,4.28835231]
[1760667921225,2.73951572,3915.9,3914.5,4.28835231]
[1760667921226,8.882488,3915.9,3915.1,0.6336]
[1760667921542,2.581,3915.8,3915.3,0.6336]
[1760667921686,2.04711202,3916.4,3915.5,0.6336]
[1760667921687,0.76829994,3916.4,3915.5,0.6336]
[1760667921887,2.581,3916.3,3915.8,0.6336]
[1760667922118,2.581,3916.3,3916.2,0.8613]
[1760667922290,2.581,3916.3,3916.2,3.84349573]
[1760667922993,2.581,3916.3,3916.2,1.29]
[1760667924496,2.98129541,3916.3,3916.2,3.84349573]
[1760667925513,2.98129541,3916.3,3916.2,4.48320423]
[1760667926433,0.1292,3916.5,3916.4,2.55336533]
[1760667926796,0.1292,3916.5,3916.4,3.61566533]
[1760667926797,0.002,3916.5,3916.4,3.61566533]
[1760667927130,0.002,3916.5,3916.4,3.74286533]
[1760667931842,0.002,3916.5,3916.4,5.47086533]
[1760667932056,0.002,3917.3,3917.2,2.55284386]
[1760667932341,0.002,3917.3,3917.2,3.18644386]
[1760667932729,0.002,3917.3,3917.2,3.61514386]
[1760667933645,0.104,3917.3,3917.2,0.6336]
[1760667934332,0.002,3917.3,3917.2,0.6336]
[1760667934646,0.002,3917.3,3917.2,3.18644386]
[1760667934950,0.002,3917.3,3917.2,0.6336]
[1760667935243,0.104,3917.3,3916.7,2.55313216]
[1760667935415,0.1272,3916.9,3916.7,0.6336]
[1760667935615,2.7072,3916.9,3916.8,3.18670457]
[1760667936014,3.10741099,3916.9,3916.8,3.18670457]
[1760667937745,3.40811099,3916.9,3916.5,2.55323536]
[1760667937952,0.1272,3916.5,3915.9,0.6336]
[1760667938126,0.1272,3916.5,3916.3,2.55337426]
[1760667938316,0.1029,3916.4,3916.3,2.55337426]
[1760667938653,0.1029,3916.4,3916.3,3.18697426]
[1760667938865,0.1029,3916.4,3915.8,0.1272]
[1760667939031,0.1272,3916.0,3915.2,3.21049489]
[1760667939224,0.1272,3916.0,3915.9,0.6336]
[1760667939622,0.1272,3916.0,3915.8,2.55370149]
[1760667939831,0.1272,3916.0,3915.9,0.6336]
[1760667940046,0.2301,3916.0,3915.7,2.55376178]
[1760667940321,0.2887,3915.9,3915.6,2.55387576]
[1760667940618,0.2895,3915.9,3915.3,2.5540827]
[1760667940827,0.1037,3915.8,3915.4,2.55395665]
[1760667941119,2.6837,3915.7,3915.0,2.55422663]
[1760667941459,2.58,3915.7,3915.6,2.55388701]
[1760667941959,2.58,3915.7,3915.6,3.18748701]
[1760667942156,2.58,3915.7,3915.6,3.61618701]
[1760667942522,2.58,3915.7,3915.6,3.18748701]
[1760667942721,2.58,3915.7,3915.4,2.55400403]
[1760667942722,2.679,3915.7,3915.4,2.5540168]
[1760667942956,0.1272,3915.4,3914.7,0.1272]
[1760667943267,0.1272,3915.2,3915.0,2.5542176]
[1760667943474,0.099,3915.4,3914.8,2.5544089]
[1760667943475,0.1272,3915.0,3914.8,2.5544089]
[1760667943669,0.1272,3915.0,3914.6,0.4287]
[1760667943670,0.1272,3915.0,3914.3,0.1272]
[1760667943855,0.1272,3915.0,3914.7,2.55441737]
[1760667944172,0.1272,3915.0,3914.8,2.55435418]
[1760667944476,0.1272,3915.0,3914.9,3.18794366]
[1760667944676,0.1272,3915.0,3914.5,0.004]
[1760667944677,0.099,3915.0,3914.5,0.004]
[1760667944969,0.1272,3914.7,3914.6,2.55447802]
[1760667945174,0.1272,3914.7,3914.6,3.18807802]
[1760667945468,0.52763196,3914.7,3914.6,3.18807802]
[1760667945841,0.52763196,3914.7,3914.6,3.18907802]
[1760667947935,0.1272,3914.7,3914.6,3.18907802]
[1760667948373,2.7072,3914.7,3914.6,3.18907802]
[1760667950470,2.7072,3914.7,3914.6,3.18913941]
[1760667950684,2.7072,3914.7,3914.6,0.6346]
[1760667950910,0.50472,3914.7,3914.6,0.001]
[1760667951205,2.814,3914.7,3914.6,0.001]
[1760667953815,3.21447949,3914.7,3914.6,0.001]
[1760667955435,2.98047949,3914.7,3914.6,0.001]
[1760667955925,3.08727949,3914.7,3914.6,0.001]
[1760667956790,2.98047949,3914.7,3914.6,0.001]
[1760667957611,2.581,3914.7,3914.6,3.62933941]
[1760667957789,2.581,3914.7,3914.6,4.24813637]
[1760667958117,2.7082,3914.7,3914.6,4.24813637]
[1760667960686,2.7082,3914.7,3914.6,3.18913941]
[1760667961323,2.7082,3914.7,3914.6,0.001]
[1760667961509,0.1272,3914.7,3914.6,0.001]
[1760667961709,2.8162,3914.7,3914.6,0.001]
[1760667961911,2.7082,3914.7,3914.6,0.001]
[1760667962301,3.10866192,3914.7,3914.6,0.001]
[1760667964691,3.10866192,3914.7,3914.6,2.55553941]
[1760667964896,6.971172,3915.4,3914.8,2.55435081]
[1760667965113,3.212374,3915.2,3914.8,2.55435081]
[1760667965396,2.98144952,3915.3,3914.7,3.18807416]
[1760667965397,0.1272,3914.8,3914.7,3.18807416]
[1760667965592,2.581,3914.8,3914.6,0.001]
[1760667966227,2.581,3914.8,3914.7,3.18807416]
[1760667967711,2.581,3914.8,3914.7,3.65017416]
[1760667968312,2.581,3914.8,3914.7,3.18807416]
[1760667969998,2.581,3914.8,3914.6,0.001]
[1760667970194,22.36685816,3914.7,3914.6,0.001]
[1760667970745,1.728,3914.7,3914.6,0.001]
[1760667971026,2.581,3914.7,3914.6,0.001]
[1760667971528,2.689,3914.7,3914.6,0.001]
[1760667971894,2.581,3914.7,3914.6,0.001]
[1760667972613,2.98146832,3914.7,3914.6,0.001]
[1760667973365,5.93003115,3914.7,3914.6,0.001]
[1760667973658,6.03803115,3914.7,3914.6,0.001]
[1760667973837,3.27961515,3914.7,3914.6,0.001]
[1760667975750,5.94208931,3914.7,3914.6,0.001]
[1760667976060,21.23372531,3914.7,3914.6,0.001]
[1760667976427,27.84516631,3914.7,3914.6,0.001]
[1760667976627,23.85524631,3914.7,3914.6,0.001]
[1760667976826,22.74499331,3914.7,3914.6,0.001]
[1760667977160,20.19051915,3914.7,3914.6,0.001]
[1760667977370,5.11561515,3914.7,3914.6,0.001]
[1760667977557,5.00761515,3914.7,3914.6,0.001]
[1760667977762,2.98146832,3914.7,3914.6,0.001]
[1760667978072,2.581,3914.7,3914.6,0.001]
[1760667980427,5.13547416,3914.7,3914.6,0.001]
[1760667980655,12.16447416,3914.7,3914.6,0.001]
[1760667980865,13.63635794,3914.7,3914.6,0.001]
[1760667981248,14.0368638,3914.7,3914.6,0.001]
[1760667981674,21.6677528,3914.7,3914.6,0.001]
[1760667981987,20.1198918,3914.7,3914.6,0.001]
[1760667982160,18.3715168,3914.7,3914.6,0.001]
[1760667982564,20.8111698,3914.7,3914.6,0.001]
[1760667982759,20.7031698,3914.7,3914.6,0.001]
[1760667982949,11.4609968,3914.7,3914.6,0.001]
[1760667983353,11.5689968,3914.7,3914.6,0.001]
[1760667983694,4.71050586,3914.7,3914.6,0.4311]
[1760667984062,4.71050586,3914.7,3914.6,0.001]
[1760667984387,15.31693767,3914.7,3914.6,0.001]
[1760667984558,4.71050586,3914.7,3914.6,0.001]
[1760667984760,7.37298002,3914.7,3914.6,0.001]
[1760667985058,5.91869963,3914.7,3914.6,0.001]
[1760667985278,4.71050586,3914.7,3914.6,0.001]
[1760667985855,7.26498002,3914.7,3914.6,0.001]
[1760667986076,12.42761302,3914.7,3914.6,0.001]
[1760667986263,12.53561302,3914.7,3914.6,0.001]
[1760667986583,6.71050586,3914.7,3914.6,0.001]
[1760667986887,4.71050586,3914.7,3914.6,0.001]
[1760667987580,4.31,3914.7,3914.6,0.001]
[1760667989912,11.37970342,3914.7,3914.6,0.001]
[1760667990114,11.48770342,3914.7,3914.6,0.001]
[1760667990518,25.8205639,3914.7,3914.6,0.001]
[1760667990824,26.22108674,3914.7,3914.6,0.001]
[1760667990983,52.39229874,3914.7,3914.6,0.001]
[1760667992802,49.76353874,3914.7,3914.6,0.001]
[1760667993020,52.39229874,3914.7,3914.6,0.001]
[1760667993903,52.34229874,3914.7,3914.6,0.001]
[1760667994105,52.39229874,3914.7,3914.6,0.001]
[1760667994282,52.49479201,3914.7,3914.6,0.001]
[1760667994488,52.39229874,3914.7,3914.6,0.001]
[1760667997380,47.17097674,3914.7,3914.6,0.001]
[1760667997586,45.53501474,3914.7,3914.6,0.001]
[1760667997918,44.23971074,3914.7,3914.6,0.001]
[1760667998219,51.75090474,3914.7,3914.6,0.001]
[1760667998806,49.38599374,3914.7,3914.6,0.001]